bitfinex/quotes_ETHUSD_20250414
["timestamp","ask_amount","ask_price","bid_price","bid_amount"]
[1744599092259,4.27593,1639.4,1639.3,0.14769167]
[1744599092461,4.27593,1639.4,1639.2,0.14814422]
[1744599092660,3.0,1639.4,1639.2,4.88041]
[1744599092862,7.87983,1639.4,1639.3,0.14769167]
[1744599093383,7.87983,1639.4,1638.8,4.88159]
[1744599093384,5.58534,1639.2,1638.8,4.88159]
[1744599093709,5.58534,1639.2,1638.4,3.0]
[1744599093710,5.43102,1639.0,1638.9,0.1495022]
[1744599093920,4.88269,1638.5,1638.1,5.73629]
[1744599094199,7.8834,1638.2,1638.1,0.02]
[1744599094990,3.0,1638.2,1638.1,0.02]
[1744599096218,3.0,1638.5,1638.2,0.8136]
[1744599096362,4.88188,1638.8,1638.4,4.88269]
[1744599096363,3.0,1638.8,1638.4,4.88269]
[1744599096562,7.88166,1638.8,1638.4,9.76532]
[1744599096823,9.1449596,1638.8,1638.2,0.8136]
[1744599097117,4.88294,1638.4,1638.1,0.02]
[1744599097663,3.0,1638.5,1638.2,4.88329]
[1744599097893,4.88271,1638.5,1638.1,4.90369]
[1744599098194,4.88271,1638.5,1638.1,0.02]
[1744599098397,5.371211,1638.4,1638.1,0.02]
[1744599098893,3.0,1638.6,1638.4,4.88269]
[1744599099137,52.333,1638.9,1638.4,0.8136]
[1744599099339,5.58601,1639.0,1638.6,4.88205]
[1744599099629,5.58601,1639.0,1638.5,5.01752233]
[1744599099630,3.0,1638.8,1638.5,5.01752233]
[1744599099782,5.58583,1639.0,1638.7,0.13428644]
[1744599099979,0.558583,1638.9,1638.6,0.13473936]
[1744599100207,3.558583,1638.9,1638.8,0.13383358]
[1744599100415,3.558583,1638.9,1638.7,0.13264072]
[1744599100609,3.558583,1638.9,1638.6,4.88202]
[1744599101017,3.558583,1638.9,1638.7,0.13264072]
[1744599101318,3.558583,1638.9,1638.6,4.88202]
[1744599101791,3.558583,1638.9,1638.7,0.132989]
[1744599102121,3.558583,1638.9,1638.6,4.88202]
[1744599102284,4.88075,1639.1,1638.7,4.88174]
[1744599102608,3.0,1639.0,1638.7,5.01464193]
[1744599102831,3.0,1639.0,1638.7,4.88174]
[1744599103016,7.88104,1639.0,1638.8,0.13253612]
[1744599103217,5.669424,1638.9,1638.8,0.13253612]
[1744599103391,3.0,1638.4,1638.1,0.02]
[1744599103591,7.88285,1638.4,1638.1,0.02]
[1744599103917,13.09802,1638.7,1638.3,5.69648]
[1744599104084,3.0,1638.6,1638.3,5.69648]
[1744599104284,3.0,1638.6,1638.4,5.00640112]
[1744599104485,3.0,1638.6,1638.4,5.00630112]
[1744599104890,3.0,1638.6,1638.4,0.12363112]
[1744599105242,0.788104,1638.9,1638.4,0.12363112]
[1744599105395,0.788104,1638.9,1638.4,4.88254]
[1744599105586,7.88221,1638.6,1638.5,0.1231781]
[1744599105783,8.58701,1638.6,1638.5,0.1231781]
[1744599105991,4.88283,1638.4,1638.1,0.02]
[1744599106305,5.34213788,1638.4,1638.1,0.02]
[1744599106919,10.22521788,1638.4,1638.1,0.02]
[1744599107312,4.88329,1638.3,1638.1,0.02]
[1744599107515,4.8834,1638.2,1638.1,0.02]
[1744599109329,7.8834,1638.2,1638.1,0.02]
[1744599109534,8.5882,1638.2,1638.1,0.02]
[1744599109739,9.1382,1638.2,1638.1,0.02]
[1744599110033,10.540349,1638.2,1638.1,0.02]
[1744599110204,0.7048,1637.7,1637.2,0.3996769]
[1744599110404,4.8856,1637.5,1637.2,0.3996769]
[1744599110745,9.77131,1637.5,1637.2,0.3496769]
[1744599110928,4.8856,1637.5,1637.2,0.3496769]
[1744599111132,4.88471,1637.8,1637.3,5.69961]
[1744599111358,3.0,1637.7,1637.3,6.30453869]
[1744599111504,9.76951,1637.8,1637.3,0.8136]
[1744599111505,4.88564,1637.5,1637.3,0.8136]
[1744599112199,4.88493,1637.7,1637.2,0.3496769]
[1744599112401,4.88609,1637.3,1637.2,0.3496769]
[1744599112604,8.59089,1637.3,1637.2,0.3496769]
[1744599112802,7.88609,1637.3,1637.2,0.3496769]
[1744599113112,9.98509,1637.3,1637.2,0.3496769]
[1744599113517,9.98509,1637.3,1637.2,0.48782399]
[1744599114028,9.98509,1637.3,1637.2,0.3496769]
[1744599114431,10.68989,1637.3,1637.2,0.3496769]
[1744599114630,11.23989,1637.3,1637.2,0.3496769]
[1744599116237,17.40989,1637.3,1637.2,0.3496769]
[1744599116443,4.88668,1637.1,1636.5,0.005]
[1744599116603,4.88799,1636.7,1636.6,0.1149252]
[1744599116801,7.88799,1636.7,1636.5,0.005]
[1744599117027,7.88799,1636.7,1636.6,0.12209171]
[1744599117331,4.88799,1636.7,1636.6,0.12209171]
[1744599118602,13.05308372,1636.7,1636.6,0.12209171]
[1744599118806,14.84715109,1636.7,1636.6,0.12209171]
[1744599119002,7.88818,1636.6,1636.5,0.005]
[1744599119314,16.10918,1636.6,1636.5,0.005]
[1744599119819,16.11118,1636.6,1636.5,0.005]
[1744599120345,16.66118,1636.6,1636.5,0.005]
[1744599120510,25.62701311,1636.6,1636.5,0.005]
[1744599120932,22.28118,1636.6,1636.5,0.005]
[1744599121139,22.83118,1636.6,1636.5,0.005]
[1744599121438,22.83118,1636.6,1636.1,0.02]
[1744599121439,8.59417,1636.2,1636.1,0.02]
[1744599122007,7.88937,1636.2,1636.1,0.14313199]
[1744599122346,4.88832,1636.6,1636.2,0.8136]
[1744599122541,4.88776,1636.8,1636.3,4.88891]
[1744599122855,4.88654,1637.2,1636.7,4.88766]
[1744599123147,9.77362,1637.1,1636.6,0.8136]
[1744599123443,4.88904,1636.4,1636.3,0.8136]
[1744599123645,7.88837,1636.6,1636.3,0.8136]
[1744599123856,4.88878,1636.4,1636.3,0.8136]
[1744599124065,4.88915,1636.3,1636.1,0.02]
[1744599124271,4.88878,1636.4,1636.1,0.02]
[1744599124464,9.7778,1636.4,1636.1,0.02]
[1744599124621,4.88878,1636.4,1636.1,0.02]
[1744599125171,3.0,1636.5,1636.1,4.90966]
[1744599125320,3.0,1636.5,1636.1,5.964922]
[1744599125521,3.0,1636.5,1636.1,0.02]
[1744599125752,3.0,1636.5,1636.1,4.97059152]
[1744599125923,4.88928,1636.3,1636.1,0.02]
[1744599126277,7.88891,1636.4,1636.1,0.02]
[1744599126621,3.44175276,1636.8,1636.1,0.02]
[1744599126873,4.8883,1636.6,1636.3,0.7547]
[1744599127183,11.50519531,1637.1,1636.7,5.64248]
[1744599127184,16.39182531,1637.1,1636.7,5.64248]
[1744599127469,13.1124,1637.2,1636.7,0.7547]
[1744599127619,13.1124,1637.2,1636.8,4.88746]
[1744599127820,3.0,1637.1,1636.7,0.7547]
[1744599128019,7.88677,1637.1,1636.7,5.64235]
[1744599128237,4.88707,1637.0,1636.7,0.7547]
[1744599128465,7.88671,1637.1,1636.7,5.64244]
[1744599128971,3.0,1637.1,1636.9,4.88725]
[1744599129176,8.226,1637.2,1636.9,4.88725]
[1744599129336,8.226,1637.2,1636.7,6.206804]
[1744599129523,7.88688,1637.1,1636.7,0.7547]
[1744599129727,7.88688,1637.1,1636.7,5.64255]
[1744599129975,12.77378,1637.1,1636.7,5.64255]
[1744599130142,7.88688,1637.1,1636.7,0.7547]
[1744599130456,4.88758,1636.8,1636.7,0.7547]
[1744599130641,4.88788,1636.7,1636.3,5.64359]
[1744599131931,4.88788,1636.7,1636.3,5.64377]
[1744599132275,4.88812,1636.7,1636.4,0.1191359]
[1744599132438,4.88848,1636.5,1636.4,0.1191359]
[1744599132955,4.88829,1636.6,1636.4,0.1191359]
[1744599133161,3.0,1636.5,1636.4,0.1191359]
[1744599133361,6.17,1637.0,1636.4,0.1191359]
[1744599133562,4.88699,1637.0,1636.4,0.18024045]
[1744599133743,4.88879,1636.4,1636.2,0.7547]
[1744599133938,7.88821,1636.6,1636.2,0.7547]
[1744599134133,12.7765,1636.6,1636.2,5.64391]
[1744599134334,12.7766,1636.6,1636.2,5.64391]
[1744599135061,4.88796,1636.7,1636.3,4.88895]
[1744599135264,4.88796,1636.7,1636.3,9.83899635]
[1744599135470,4.88796,1636.7,1636.2,6.210441]
[1744599135765,4.88832,1636.6,1636.2,11.099651]
[1744599135933,3.0,1636.8,1636.5,4.88836]
[1744599136135,4.88704,1637.0,1636.6,5.70387053]
[1744599136343,4.88704,1637.0,1636.6,5.64277]
[1744599136545,9.38975673,1637.3,1636.6,5.64277]
[1744599136546,4.88751,1636.9,1636.6,0.7547]
[1744599136762,4.887,1637.0,1636.6,5.64277]
[1744599137065,3.0,1637.2,1636.6,5.64277]
[1744599137066,8.41266775,1637.2,1636.6,0.7547]
[1744599137256,4.88783,1636.8,1636.6,0.7547]
[1744599137430,9.77567,1636.8,1636.6,0.7547]
[1744599137634,4.88783,1636.8,1636.6,0.7547]
[1744599138035,4.88782,1636.8,1636.6,0.7547]
[1744599138235,4.88788,1636.7,1636.6,0.7547]
[1744599138467,4.88782,1636.8,1636.6,0.7547]
[1744599138764,4.88779,1636.8,1636.6,0.7547]
[1744599139072,5.376569,1636.8,1636.6,0.7547]
[1744599139246,4.88788,1636.7,1636.6,0.7547]
[1744599139443,4.88818,1636.6,1636.3,0.7665]
[1744599139641,4.88853,1636.5,1636.3,0.7665]
[1744599140469,4.88878,1636.4,1636.1,0.02]
[1744599140676,4.88937,1636.2,1636.1,0.02]
[1744599142154,7.88937,1636.2,1636.1,0.02]
[1744599142465,7.88937,1636.2,1636.1,0.16109336]
[1744599142635,16.81117,1636.2,1636.1,0.02]
[1744599142841,19.33383977,1636.2,1636.1,0.02]
[1744599144163,7.88937,1636.2,1636.1,0.02]
[1744599145275,7.88937,1636.2,1636.1,0.13761053]
[1744599147166,7.88937,1636.2,1636.1,0.02]
[1744599147571,7.88937,1636.2,1636.1,0.13624046]
[1744599147884,7.88937,1636.2,1636.1,0.13746181]
[1744599148991,9.21219672,1636.2,1636.1,0.13746181]
[1744599149345,7.88937,1636.2,1636.1,0.13746181]
[1744599149886,4.88918,1636.3,1636.1,0.90396181]
[1744599150094,4.88937,1636.2,1636.1,0.90396181]
[1744599150393,7.88937,1636.2,1636.1,0.13746181]
[1744599152998,7.88937,1636.2,1636.1,0.02]
[1744599153802,4.88859,1636.5,1636.2,0.7745]
[1744599153988,4.88834,1636.6,1636.2,0.7745]
[1744599154167,4.88788,1636.7,1636.3,5.00433786]
[1744599154372,4.88788,1636.7,1636.2,6.35776844]
[1744599154578,4.88843,1636.6,1636.2,1.35461343]
[1744599154774,4.88843,1636.6,1636.2,6.30495236]
[1744599155007,4.88843,1636.6,1636.2,6.24384343]
[1744599155302,4.88843,1636.6,1636.2,10.55299]
[1744599155474,4.88843,1636.6,1636.3,0.1173447]
[1744599155804,8.22,1636.8,1636.4,4.88857]
[1744599156005,8.22,1636.8,1636.6,5.66246]
[1744599156166,8.22,1636.8,1636.6,0.7745]
[1744599156602,8.22,1636.8,1636.5,4.8884]
[1744599157611,8.22,1636.8,1636.6,4.88818]
[1744599158501,8.219,1637.3,1636.7,0.83559881]
[1744599158821,8.219,1637.3,1636.9,4.8872]
[1744599158968,11.05562,1637.5,1637.2,0.7745]
[1744599159173,4.88636,1637.3,1637.0,0.7745]
[1744599159373,4.88652,1637.2,1637.0,0.7745]
[1744599160195,9.77315,1637.2,1637.0,0.7745]
[1744599160425,3.0,1637.1,1636.7,0.7745]
[1744599160681,7.88671,1637.1,1636.7,5.66231]
[1744599160875,3.0,1637.1,1636.7,5.66218]
[1744599161080,3.0,1637.1,1636.9,9.77439]
[1744599161280,3.0,1637.1,1636.8,9.77514]
[1744599161586,3.0,1637.1,1636.7,5.66237]
[1744599161587,7.88674,1637.1,1636.7,5.66237]
[1744599161799,3.0,1637.1,1636.8,4.88757]
[1744599161999,3.0,1637.3,1637.0,4.88681]
[1744599162200,7.88613,1637.3,1636.9,0.7745]
[1744599162406,5.675173,1637.2,1636.9,0.7745]
[1744599163112,0.788613,1637.2,1636.9,5.66175]
[1744599163613,4.88611,1637.3,1636.9,5.66175]
[1744599164187,4.88613,1637.3,1636.9,5.66163]
[1744599164788,4.88593,1637.4,1636.9,5.66163]
[1744599164981,4.88633,1637.3,1636.9,5.66163]
[1744599165318,0.488633,1637.2,1636.9,5.66163]
[1744599166032,0.488633,1637.2,1636.9,0.7745]
[1744599166331,7.8864,1637.2,1636.8,9.77482]
[1744599166517,3.0,1637.2,1637.0,5.69498]
[1744599166918,3.0,1637.2,1637.1,4.88668]
[1744599167092,6.05300992,1637.6,1637.2,4.88617]
[1744599167428,4.88552,1637.5,1637.1,4.88667]
[1744599167593,8.49082099,1637.5,1637.1,4.88667]
[1744599168326,8.49082099,1637.5,1637.1,9.77317]
[1744599168526,8.49082099,1637.5,1637.1,4.8865]
[1744599168927,8.49082099,1637.5,1637.1,9.77299]
[1744599169121,8.49082099,1637.5,1637.1,4.88649]
[1744599169424,4.88624,1637.3,1637.0,0.8082]
[1744599170099,4.88624,1637.3,1637.0,5.69515]
[1744599170304,3.0,1637.3,1637.0,10.58197]
[1744599171199,7.88609,1637.3,1637.0,0.8082]
[1744599171526,0.788609,1637.2,1637.0,0.8082]
[1744599171825,4.88582,1637.4,1637.1,4.88652]
[1744599171826,3.0,1637.4,1637.1,4.88652]
[1744599172195,3.0,1637.4,1637.1,4.8865]
[1744599172530,3.60530099,1637.5,1637.2,4.88625]
[1744599172728,5.58973,1637.7,1637.2,0.06107573]
[1744599172889,4.88493,1637.7,1637.3,5.63654]
[1744599173092,3.0,1637.6,1637.2,4.88625]
[1744599173290,4.88532,1637.6,1637.2,4.88625]
[1744599173492,0.7048,1638.2,1637.6,0.7507]
[1744599173699,4.88373,1638.1,1637.7,4.88489]
[1744599173897,3.0,1638.0,1637.7,4.88489]
[1744599174212,10.326533,1638.1,1637.7,4.88489]
[1744599174420,4.8847,1637.8,1637.6,0.7507]
[1744599175538,4.8843,1637.9,1637.4,0.7507]
[1744599175842,9.77022,1637.7,1637.4,0.7507]
[1744599176047,6.232562,1637.7,1637.4,0.7507]
[1744599176338,1.347502,1637.7,1637.4,10.52209]
[1744599176546,1.347502,1637.7,1637.4,0.7507]
[1744599176547,6.232512,1637.7,1637.4,0.7507]
[1744599176835,1.347502,1637.7,1637.4,5.63648]
[1744599177040,6.232562,1637.7,1637.4,0.7507]
[1744599177410,6.232562,1637.7,1637.4,5.63647]
[1744599177646,6.232562,1637.7,1637.4,0.7507]
[1744599178541,1.347502,1637.7,1637.4,10.52208]
[1744599178748,7.88463,1637.8,1637.4,10.52208]
[1744599179219,12.76941,1637.8,1637.4,5.63631]
[1744599179421,4.88495,1637.7,1637.4,0.7507]
[1744599179620,7.88572,1637.5,1637.0,0.7507]
[1744599179805,4.88624,1637.3,1637.0,0.7507]
[1744599180347,7.88641,1637.2,1637.0,0.7507]
[1744599181030,3.0,1637.2,1637.0,0.7507]
[1744599181813,3.0,1637.1,1636.6,10.52693]
[1744599182010,9.77358,1637.1,1636.7,4.88786]
[1744599182215,7.887,1637.0,1636.6,5.63876]
[1744599182560,3.0,1637.0,1636.8,4.88751]
[1744599182945,3.0,1637.3,1637.0,5.63756]
[1744599183130,3.0,1637.3,1637.1,4.88668]
[1744599183545,3.0,1637.3,1637.0,0.7507]
[1744599183729,4.88649,1637.2,1637.0,0.7507]
[1744599184630,3.0,1637.1,1636.8,10.56849]
[1744599185266,7.88673,1637.1,1636.8,5.68091]
[1744599185488,7.88673,1637.1,1636.6,0.7752]
[1744599185772,3.0,1636.6,1636.2,0.7752]
[1744599185914,3.0,1636.3,1636.1,4.97060858]
[1744599186119,3.0,1636.3,1636.1,0.02]
[1744599186360,4.88935,1636.3,1636.1,0.02]
[1744599186532,7.8888,1636.4,1636.1,4.90965]
[1744599186865,3.0,1636.4,1636.1,4.90965]
[1744599187018,4.88912,1636.3,1636.1,0.02]
[1744599187359,3.0,1636.4,1636.1,4.90945]
[1744599187556,3.0,1636.4,1636.1,0.02]
[1744599187731,3.0,1636.4,1636.2,4.88925]
[1744599187927,8.206,1636.5,1636.2,9.77844]
[1744599188129,0.7048,1636.7,1636.3,4.88903]
[1744599188334,3.0,1636.5,1636.4,0.7752]
[1744599188927,3.0,1636.5,1636.2,4.88937]
[1744599189132,3.0,1636.5,1636.2,5.66457]
[1744599189764,7.88813,1636.7,1636.3,4.88897]
[1744599189919,9.293943,1636.7,1636.3,9.77794]
[1744599190128,14.182023,1636.7,1636.3,4.88897]
[1744599190671,9.293893,1636.7,1636.3,9.77792]
[1744599190877,3.0,1636.7,1636.5,4.88829]
[1744599191180,3.0,1636.7,1636.4,4.8886]
[1744599192068,3.0,1636.5,1636.2,5.66441]
[1744599192243,3.788829,1636.5,1636.2,5.66441]
[1744599192444,7.88858,1636.5,1636.2,0.7752]
[1744599192668,13.48215,1636.5,1636.1,4.90959]
[1744599192877,3.0,1636.5,1636.1,0.02]
[1744599193101,3.0,1636.6,1636.4,4.88868]
[1744599193267,3.0,1636.7,1636.4,4.88868]
[1744599193468,7.8879,1636.7,1636.3,10.55316]
[1744599193776,9.235932,1636.7,1636.3,5.66409]
[1744599193976,9.235932,1636.7,1636.3,10.55302]
[1744599194594,9.235932,1636.7,1636.3,10.50302]
[1744599195206,1.348032,1636.7,1636.3,0.7252]
[1744599195398,9.77676,1636.6,1636.3,0.7252]
[1744599195574,3.0,1636.5,1636.3,0.7252]
[1744599196066,4.88878,1636.4,1636.1,0.02]
[1744599196573,3.0,1636.3,1636.1,0.02]
[1744599196840,3.0,1636.3,1636.1,4.9095]
[1744599197104,3.0,1636.6,1636.2,4.88937]
[1744599197293,13.83942,1636.8,1636.4,4.88864]
[1744599197492,3.0,1636.7,1636.4,4.88864]
[1744599197699,3.0,1636.7,1636.3,4.88896]
[1744599198094,3.0,1636.7,1636.4,4.88877]
[1744599200512,3.0,1636.7,1636.5,0.7975]
[1744599200898,3.0,1636.7,1636.5,5.68572]
[1744599201090,3.0,1636.8,1636.6,4.88799]
[1744599201694,3.0,1636.8,1636.5,10.57426]
[1744599201895,7.88768,1636.8,1636.5,0.7975]
[1744599202212,7.88768,1636.8,1636.5,5.68597]
[1744599203413,7.88768,1636.8,1636.5,0.7975]
[1744599203807,9.984996,1636.8,1636.5,0.7975]
[1744599204017,14.872876,1636.8,1636.4,4.8886]
[1744599204229,9.984996,1636.8,1636.3,5.68655]
[1744599204511,4.88799,1636.7,1636.3,5.6864]
[1744599204713,7.88768,1636.8,1636.4,4.88866]
[1744599204877,12.77553,1636.8,1636.4,4.88866]
[1744599205077,3.0,1636.8,1636.3,0.7975]
[1744599205311,4.88931,1636.3,1636.1,0.02]
[1744599205511,0.488931,1636.3,1636.1,0.02]
[1744599205714,3.7548,1636.4,1636.1,0.02]
[1744599205897,8.64361,1636.4,1636.1,0.02]
[1744599208222,9.09779848,1636.4,1636.1,0.02]
[1744599208814,3.7548,1636.2,1636.1,0.02]
[1744599209116,8.64417,1636.2,1636.1,0.02]
[1744599209314,9.997506,1636.2,1636.1,0.02]
[1744599209477,5.108136,1636.2,1636.1,0.02]
[1744599209917,9.997506,1636.2,1636.1,0.02]
[1744599211083,15.57698848,1636.4,1636.1,0.02]
[1744599211405,6.17,1636.4,1636.1,5.70712]
[1744599211712,3.0,1636.3,1636.1,5.70712]
[1744599212096,3.0,1636.3,1636.1,5.70699]
[1744599212416,7.88859,1636.5,1636.1,11.167209]
[1744599212817,4.88894,1636.4,1636.1,0.8175]
[1744599213130,3.7548,1636.6,1636.1,0.02]
[1744599213131,4.88937,1636.2,1636.1,0.02]
[1744599213606,7.88937,1636.2,1636.1,0.02]
[1744599213990,3.0,1636.2,1636.1,0.02]
[1744599214418,0.77365405,1636.8,1636.2,0.7608]
[1744599214618,0.77365405,1636.8,1636.5,4.88837]
[1744599214619,4.90649405,1636.8,1636.5,4.88837]
[1744599214823,4.88805,1636.7,1636.3,9.7781]
[1744599215012,7.90643405,1636.8,1636.4,4.88877]
[1744599215220,7.90646405,1636.8,1636.3,4.88905]
[1744599215531,4.90646405,1636.8,1636.2,0.7608]
[1744599215681,4.90646405,1636.8,1636.4,4.88853]
[1744599215987,0.01885405,1636.8,1636.6,4.88799]
[1744599216185,0.01885405,1636.8,1636.5,5.64926]
[1744599216489,4.90659405,1636.8,1636.5,0.7608]
[1744599216795,0.01885405,1636.8,1636.6,4.88817]
[1744599216994,0.01885405,1636.8,1636.7,5.376697]
[1744599218205,0.01885405,1636.8,1636.7,6.137497]
[1744599218419,0.01885405,1636.8,1636.7,5.64868]
[1744599223105,0.01885405,1636.8,1636.7,5.70976738]
[1744599223317,0.01885405,1636.8,1636.7,5.64868]
[1744599223864,5.63953,1637.8,1637.4,4.8855]
[1744599223997,5.63953,1637.8,1637.3,0.7608]
[1744599223998,4.885,1637.7,1637.3,0.7608]
[1744599224198,4.88536,1637.6,1637.3,0.7608]
[1744599224939,4.88536,1637.6,1637.3,5.64688]
[1744599225514,5.44898,1637.7,1637.3,10.53296]
[1744599225902,8.63942,1637.8,1637.3,0.7608]
[1744599225903,3.0,1637.6,1637.3,0.7608]
[1744599226108,3.0,1637.6,1637.1,10.5339]
[1744599226109,3.0,1637.4,1637.1,10.5339]
[1744599226349,3.0,1637.4,1637.1,5.64732]
[1744599226643,7.8852,1637.6,1637.2,4.88638]
[1744599226817,14.124703,1637.6,1637.2,4.88638]
[1744599227357,3.0,1637.4,1637.1,0.7608]
[1744599227565,7.88601,1637.4,1637.0,4.88688]
[1744599227715,7.88601,1637.4,1637.0,9.77371]
[1744599228059,3.0,1637.4,1637.1,4.88652]
[1744599228562,4.88612,1637.3,1636.9,5.64805]
[1744599228741,4.88684,1637.1,1636.9,0.7608]
[1744599228943,9.77297,1637.2,1636.9,0.7608]
[1744599229109,4.88672,1637.1,1636.8,4.88753]
[1744599229315,4.88672,1637.1,1636.7,10.54292]
[1744599230231,4.88672,1637.1,1636.8,4.88758]
[1744599230758,3.977312,1637.1,1636.8,4.88745]
[1744599230917,3.0,1637.1,1636.8,4.88745]
[1744599231113,19.2359,1637.7,1637.2,4.88611]
[1744599231353,0.7736,1637.6,1637.2,4.88611]
[1744599231620,4.88491,1637.7,1637.4,4.88568]
[1744599231850,4.88432,1637.9,1637.6,4.88507]
[1744599232059,4.88472,1637.8,1637.4,5.65309]
[1744599232316,3.0,1637.7,1637.4,5.65309]
[1744599232668,3.0,1637.7,1637.5,4.88532]
[1744599232957,4.88431,1637.9,1637.6,4.88519]
[1744599233180,4.88431,1637.9,1637.5,9.77064]
[1744599233465,3.0,1637.8,1637.5,9.77064]
[1744599233760,3.0,1637.8,1637.5,9.77068]
[1744599233971,19.23473,1638.1,1637.7,9.76978]
[1744599234135,19.23473,1638.1,1637.7,4.88489]
[1744599234333,3.0,1638.0,1637.6,4.88519]
[1744599234861,7.884,1638.0,1637.6,9.77021]
[1744599235562,7.884,1638.0,1637.7,4.88487]
[1744599235762,10.595873,1638.0,1637.7,4.88487]
[1744599235964,5.711873,1638.0,1637.8,5.65186]
[1744599236172,3.0,1638.0,1637.8,5.65186]
[1744599236877,3.0,1638.0,1637.5,4.88549]
[1744599236878,4.88433,1637.9,1637.6,5.65259]
[1744599237559,7.884,1638.0,1637.6,5.65259]
[1744599237877,7.884,1638.0,1637.6,10.5376]
[1744599238029,9.777772,1638.0,1637.6,10.5376]
[1744599238230,9.777772,1638.0,1637.6,5.65241]
[1744599238467,14.661982,1638.0,1637.6,5.65241]
[1744599238771,9.777772,1638.0,1637.6,5.65241]
[1744599239752,9.777772,1638.0,1637.6,10.53743]
[1744599239960,9.777772,1638.0,1637.6,5.65241]
[1744599240258,14.662022,1638.0,1637.6,5.65241]
[1744599240457,9.777772,1638.0,1637.6,10.53744]
[1744599240775,3.0,1638.0,1637.7,4.88485]
[1744599241579,0.7736,1638.2,1637.6,0.7674]
[1744599241744,8.65701,1638.2,1637.8,4.88447]
[1744599242575,0.7736,1638.2,1637.6,5.65257]
[1744599242761,4.88453,1637.9,1637.6,0.7674]
[1744599243256,4.88453,1637.9,1637.5,9.77078]
[1744599243257,3.0,1637.8,1637.5,4.88531]
[1744599243675,10.54065,1638.2,1637.8,4.88438]
[1744599244178,5.65703,1638.2,1637.8,4.88438]
[1744599244540,4.88313,1638.3,1637.9,0.7674]
[1744599244883,3.0,1638.3,1638.0,4.88396]
[1744599245085,0.7736,1638.4,1638.0,0.0610419]
[1744599245233,0.7736,1638.4,1637.8,4.88437]
[1744599245234,4.88353,1638.2,1637.8,4.88437]
[1744599245434,4.88376,1638.1,1637.8,4.88437]
[1744599245634,9.76774,1638.1,1637.7,5.65226]
[1744599245869,10.744514,1638.1,1637.7,5.65226]
[1744599246068,4.88376,1638.1,1637.7,10.53698]
[1744599246270,4.88342,1638.2,1637.8,4.94552181]
[1744599246583,4.88342,1638.2,1637.9,4.88429]
[1744599246784,4.88342,1638.2,1637.8,4.88447]
[1744599247520,4.88374,1638.1,1637.7,5.65227]
[1744599247809,5.65774,1638.0,1637.6,4.88503]
[1744599248113,3.0,1637.9,1637.3,0.7674]
[1744599248286,4.88579,1637.4,1637.0,5.65427]
[1744599248612,4.88653,1637.2,1636.8,5.65495]
[1744599249111,5.6597,1637.3,1636.8,5.6548]
[1744599249299,3.0,1637.2,1636.9,4.88706]
[1744599249977,3.0,1637.2,1637.0,4.88689]
[1744599250186,3.0,1637.2,1636.9,4.88706]
[1744599250371,3.0,1637.2,1636.9,10.339676]
[1744599250567,3.0,1637.2,1636.9,5.452506]
[1744599250778,7.88643,1637.2,1636.9,0.565446]
[1744599251124,4.88699,1637.0,1636.7,8.177]
[1744599252122,7.88655,1637.2,1636.7,8.2380903]
[1744599252319,3.0,1637.2,1636.9,4.88728]
[1744599252828,8.9506,1637.5,1637.0,0.7674]
[1744599252982,8.65918,1637.5,1637.0,0.7674]
[1744599253186,8.65918,1637.5,1637.1,4.88658]
[1744599253494,5.65918,1637.5,1637.1,5.940664]
[1744599253694,7.88583,1637.4,1637.0,5.65426]
[1744599254096,4.88579,1637.4,1636.7,8.177]
[1744599254300,4.8866,1637.2,1636.8,5.65493]
[1744599254616,7.88612,1637.3,1636.9,4.88727]
[1744599254814,7.88612,1637.3,1636.9,5.45873587]
[1744599255030,7.88612,1637.3,1636.9,5.45868587]
[1744599255187,7.88612,1637.3,1636.9,10.34582587]
[1744599255892,7.88612,1637.3,1636.9,5.45868587]
[1744599256429,3.0,1637.4,1636.9,0.63265854]
[1744599256727,3.0,1637.4,1637.1,4.88663]
[1744599257047,7.88603,1637.4,1637.0,4.88691]
[1744599257331,3.0,1637.4,1637.1,4.88666]
[1744599257509,3.0,1637.4,1637.0,4.88691]
[1744599257714,7.88595,1637.4,1637.0,4.88692]
[1744599257900,7.88595,1637.4,1637.1,4.88666]
[1744599258457,7.88595,1637.4,1636.9,4.88727]
[1744599258607,4.88655,1637.2,1636.8,10.54237]
[1744599259020,4.88655,1637.2,1636.8,5.65488]
[1744599259327,9.77312,1637.2,1636.8,5.65488]
[1744599259663,4.88669,1637.1,1636.8,5.65488]
[1744599259866,3.0,1637.0,1636.8,4.88748]
[1744599260158,3.0,1637.0,1636.7,4.88785]
[1744599260452,3.0,1637.0,1636.6,5.65324]
[1744599260453,9.77428,1637.0,1636.6,5.65324]
[1744599261042,4.88729,1636.9,1636.6,5.65324]
[1744599261250,4.88729,1636.9,1636.6,4.88814]
[1744599261414,3.0,1636.7,1636.4,0.7774]
[1744599261614,4.88835,1636.6,1636.2,5.66663]
[1744599262215,4.88835,1636.6,1636.2,10.55583]
[1744599262411,3.0,1636.7,1636.2,5.66677]
[1744599262615,3.0,1636.7,1636.5,4.88837]
[1744599262811,3.0,1636.7,1636.6,4.88818]
[1744599263048,13.82184,1637.3,1636.6,0.7774]